fUST/lending_fUST_20240710
["ID","MTS","AMOUNT","RATE_DAILY","PERIOD"]
[331674342,1720623040681,-600.0,0.00031983,2]
[331674343,1720623040690,-500.0,0.00032,3]
[331674345,1720623040700,-151.8,0.0003203,4]
[331674347,1720623040709,-153.0,0.00032411,2]
[331674349,1720623040719,-500.0,0.000328,120]
[331674351,1720623040728,-151.8,0.0003295,5]
[331674353,1720623040738,-500.0,0.00033,3]
[331674355,1720623040748,-5000.0,0.00033,33]
[331674357,1720623040758,-242.0,0.00033,2]
[331674359,1720623040767,-242.0,0.00033,2]
[331674361,1720623040776,-153.0,0.00033151,2]
[331674363,1720623040787,-153.0,0.00033151,2]
[331674365,1720623040797,-153.0,0.00033151,2]
[331674367,1720623040807,-153.0,0.00033151,2]
[331674369,1720623040816,-153.0,0.00033151,2]
[331674371,1720623040825,-153.0,0.00033151,2]
[331674372,1720623040835,-757.17392645,0.00033265,2]
[331674373,1720623040845,-217.808337,0.00033295,2]
[331674375,1720623040854,-154.28069495,0.00033332,2]
[331674377,1720623040863,-13213.75587636,0.00033333,2]
[331674379,1720623040875,-14095.999997,0.00033333,2]
[331674381,1720623040887,-16578.61442212,0.00033333,2]
[331674382,1720623040896,-14513.38557788,0.00033333,5]
[331674383,1720623040936,-2018.52459339,0.00033333,5]
[331674384,1720623040945,-172.52704,0.00033333,7]
[331674385,1720623040955,-172.52704,0.00033333,7]
[331674386,1720623040964,-155.36732,0.00033333,7]
[331674387,1720623040972,-151.0,0.00033333,7]
[331674388,1720623040981,-8979.05803109,0.00033345,3]
[331674389,1720623040993,-400.205078,0.00033345,3]
[331674390,1720623041004,-6175.73689091,0.00033345,3]
[331674391,1720623041013,-306.0,0.00033425,2]
[331674392,1720623041022,-333.67288233,0.00033538,2]
[331674393,1720623041031,-153.0,0.00033553,2]
[331674394,1720623041040,-1000.0,0.00033596,2]
[331674395,1720623041049,-366.6405652,0.00033598,2]
[331674396,1720623041058,-1000.0,0.00033611,2]
[331674397,1720623041067,-200.47096305,0.00033631,2]
[331674398,1720623041076,-5292.88975486,0.00033663,2]
[331674399,1720623041085,-216.922431,0.00033688,7]
[331674400,1720623041094,-216.922431,0.00033688,7]
[331674401,1720623041103,-267.512321,0.000337,120]
[331674402,1720623041112,-314.46226792,0.000337,2]
[331674403,1720623041121,-8078.17237,0.000337,2]
[331674404,1720623041130,-151.0,0.000337,7]
[331674405,1720623041139,-151.0,0.000337,7]
[331674406,1720623041149,-151.0,0.000337,7]
[331674407,1720623041158,-250.995654,0.000337,7]
[331674408,1720623041167,-250.995654,0.000337,7]
[331674409,1720623041177,-151.0,0.000337,7]
[331674410,1720623041187,-151.0,0.000337,7]
[331674411,1720623041196,-373.0,0.000337,7]
[331674412,1720623041205,-151.0,0.000337,7]
[331674413,1720623041214,-152.671266,0.000337,7]
[331674414,1720623041224,-151.0,0.000337,7]
[331674415,1720623041233,-151.0,0.000337,2]
[331674416,1720623041242,-151.0,0.000337,2]
[331674417,1720623041252,-2501.651709,0.000337,7]
[331674418,1720623041261,-2501.651709,0.000337,7]
[331674419,1720623041270,-150.0,0.000337,2]
[331674420,1720623041279,-2371.881101,0.000337,7]
[331674421,1720623041289,-2371.881101,0.000337,7]
[331674422,1720623041298,-1003.764437,0.000337,13]
[331674423,1720623041307,-216.922431,0.00033789,7]
[331674424,1720623041317,-216.922431,0.00033789,7]
[331674425,1720623041326,-14676.20705871,0.000338,5]
[331674426,1720623041335,-32825.97884986,0.000338,2]
[331674427,1720623041353,-500.0,0.000338,2]
[331674483,1720623043483,-599.14160025,0.00027399,2]
[331674484,1720623043493,-545.3289732,0.00028758,2]
[331674485,1720623043503,-545.3289732,0.00028758,2]
[331674486,1720623043513,-545.3289732,0.00028758,2]
[331674487,1720623043522,-545.3289732,0.00028758,2]
[331674488,1720623043532,-545.3289732,0.00028758,2]
[331674489,1720623043543,-545.3289732,0.00028758,2]
[331674490,1720623043552,-545.3289732,0.00028758,2]
[331674491,1720623043561,-545.3289732,0.00028758,2]
[331674492,1720623043570,-545.3289732,0.00028758,2]
[331674493,1720623043579,-545.3289732,0.00028758,2]
[331674494,1720623043589,-545.3289732,0.00028758,2]
[331674495,1720623043598,-545.3289732,0.00028758,2]
[331674496,1720623043607,-545.3289732,0.00028758,2]
[331674497,1720623043617,-545.3289732,0.00028758,2]
[331674498,1720623043626,-545.3289732,0.00028758,2]
[331674499,1720623043635,-545.3289732,0.00028758,2]
[331674500,1720623043644,-545.3289732,0.00028758,2]
[331674501,1720623043654,-545.3289732,0.00028758,2]
[331674502,1720623043663,-545.3289732,0.00028758,2]
[331674503,1720623043672,-545.3289732,0.00028758,2]
[331674504,1720623043681,-545.3289732,0.00028758,2]
[331674505,1720623043691,-545.3289732,0.00028758,2]
[331674506,1720623043700,-545.3289732,0.00028758,2]
[331674507,1720623043709,-111232.61642157,0.000338,2]
[331674685,1720623482450,15100.07629045,0.000271,20]
[331674693,1720623910880,40271.89301975,0.00016255,2]
[331674694,1720623953588,236.22452928,0.00016255,2]
[331674695,1720623960352,154.65203293,0.00016255,2]
[331674696,1720623965618,304.10670477,0.00016255,2]
[331674697,1720623966160,496.31446102,0.00016255,2]
[331674698,1720623966854,156.15559488,0.00016255,2]
[331674699,1720623980829,16250.44495325,0.00016255,2]
[331674700,1720623981745,5607.0,0.00016255,2]
[331674701,1720623982492,155.62578204,0.00016255,2]
[331674702,1720623983278,155.52394417,0.00016255,2]
[331674703,1720623983714,19401.50973228,0.00016255,2]
[331674704,1720623995946,659.88884751,0.00016255,2]
[331674705,1720624000502,4699.77945018,0.00016255,2]
[331674706,1720624002779,155.28367271,0.00016255,2]
[331674707,1720624004079,287.51223328,0.00016255,2]
[331674708,1720624008406,3775.30946352,0.00016255,2]
[331674709,1720624010581,2103.07500102,0.00016255,2]
[331674710,1720624049584,496.31446102,0.00016255,2]
[331674711,1720624058335,154.65203293,0.00016255,2]
[331674712,1720624072745,3115.0,0.00016255,2]
[331674713,1720624080848,16250.44495325,0.00016255,2]
[331674715,1720624087735,18414.27236382,0.00016255,2]
[331674716,1720624100554,2103.07500102,0.00016255,2]
[331674717,1720624100899,6090.8759091,0.00016255,2]
[331674718,1720624108742,154.65203293,0.00016255,2]
[331674719,1720624109297,155.21103404,0.00016255,2]
[331674720,1720624113939,264.16012684,0.00016255,2]
[331674721,1720624119529,3775.30946352,0.00016255,2]
[331674722,1720624135082,156.56418552,0.00016255,2]
[331674723,1720624138334,156.90978998,0.00016255,2]
[331674724,1720624146752,-300.0,0.00018898,2]
[331674725,1720624146787,-375.49562509,0.00018899,2]
[331674726,1720624146820,-161.58216182,0.00018899,2]
[331674727,1720624146922,-44.0585427,0.00018899,2]
[331674728,1720624146955,-778.68918365,0.00018899,2]
[331674729,1720624148653,1000.0,0.00026,26]
[331674730,1720624158756,3115.0,0.00016255,2]
[331674731,1720624165163,496.31446102,0.00016255,2]
[331674732,1720624169159,1000.0,0.00026,26]
[331674733,1720624176267,1000.0,0.00027,27]
[331674734,1720624207694,155.13239458,0.00016255,2]
[331674811,1720624233406,418.40514889,0.00016255,2]
[331674812,1720624234430,3775.30946352,0.00016255,2]
[331674813,1720624237543,197.89340075,0.00016255,2]
[331674821,1720624238526,-500.0,0.000184,7]
[331674822,1720624238537,-500.0,0.000184,7]
[331674823,1720624238546,-500.0,0.000184,7]
[331674824,1720624238555,-500.0,0.000184,7]
[331674825,1720624238565,-245.9420413,0.000184,7]
[331674826,1720624238574,-161.39980019,0.00018899,2]
[331674827,1720624238583,-155.16610741,0.00018899,2]
[331674828,1720624238593,-548.94163755,0.00018899,2]
[331674829,1720624238605,-210.13478558,0.00018899,2]
[331674831,1720624238612,-155.01728238,0.00018899,2]
[331674833,1720624238624,-158.13355128,0.00018899,2]
[331674835,1720624238634,-2660.77157843,0.00018899,2]
[331674836,1720624238646,-155.07135854,0.00018899,2]
[331674837,1720624238656,-205.84365603,0.00018899,2]
[331674838,1720624238667,-279.44250448,0.00019056,3]
[331674839,1720624238676,-300.0,0.00019164,2]
[331674840,1720624238685,-1490.60581636,0.00019164,2]
[331674842,1720624238696,-529.80393287,0.00019165,2]
[331674843,1720624238706,-155.13744224,0.00019165,2]
[331674844,1720624238716,-179.22707131,0.00019165,2]
[331674845,1720624238726,-178.19646666,0.00019165,2]
[331674847,1720624238737,-154.65203293,0.00019703,2]
[331674849,1720624238747,-12818.30202622,0.00019703,2]
[331674851,1720624238757,-3926.28689793,0.00019703,2]
[331674853,1720624238767,-318.617778,0.00019703,2]
[331674854,1720624238777,-185.137086,0.00021096,2]
[331674855,1720624238786,-162.033235,0.0002293,2]
[331674856,1720624238796,-191.16817144,0.00023453,2]
[331674857,1720624238805,-159.72145129,0.00023455,2]
[331674858,1720624238918,-166.666666,0.0002467,2]
[331674859,1720624238964,-150.0,0.00025,2]
[331674860,1720624238975,-13556.25487016,0.00025,2]
[331674861,1720624238985,-166.666666,0.00025343,2]
[331674862,1720624238995,-167.50283422,0.000255,2]
[331674863,1720624239005,-52142.01242753,0.00025501,2]
[331674864,1720624239015,-150.0,0.000256,2]
[331674865,1720624239026,-5211.42806786,0.00025869,2]
[331674866,1720624239036,-10520.35,0.0002598,3]
[331674867,1720624239046,-12624.42,0.0002599,3]
[331674868,1720624239056,-500.0,0.00026,3]
[331674869,1720624239066,-3458.00414405,0.00026,2]
[331674870,1720624239076,-189.26423783,0.00026,2]
[331674871,1720624239087,-428.33485551,0.00026,2]
[331674872,1720624239100,-2000.0,0.00026,2]
[331674873,1720624239110,-6865.55878528,0.00026,2]
[331674874,1720624239119,-225.75818488,0.00026,2]
[331674875,1720624239129,-2000.0,0.00026,2]
[331674876,1720624239139,-166.666666,0.00026016,2]
[331674877,1720624239149,-250.0,0.00026148,2]
[331674878,1720624239160,-167.50283422,0.00026245,2]
[331674879,1720624239169,-15149.3,0.00026544,3]
[331674880,1720624239180,-12872.62,0.00026554,3]
[331674881,1720624239189,-18179.16,0.00026564,3]
[331674882,1720624239199,-166.666666,0.00026688,2]
[331674883,1720624239209,-234.69491943,0.00026696,2]
[331674884,1720624239219,-192.39470163,0.00026979,2]
[331674885,1720624239229,-257.53609886,0.00026979,2]
[331674886,1720624239240,-71016.8137595,0.0002698,3]
[331674887,1720624239250,-1696.84276295,0.0002699,2]
[331674888,1720624239259,-167.50283422,0.0002699,2]
[331674889,1720624239269,-168.0,0.00027,2]
[331674890,1720624239279,-500.0,0.00027,3]
[331674891,1720624239290,-12018.45077229,0.00027079,5]
[331674892,1720624239299,-71016.8137595,0.0002708,3]
[331674893,1720624239310,-763.93203298,0.000271,2]
[331674894,1720624239320,-30000.0,0.00027184,2]
[331674895,1720624239330,-185.137086,0.00027195,2]
[331674896,1720624239342,-200.0,0.00027227,2]
[331674897,1720624239353,-166.666666,0.00027361,2]
[331674898,1720624239363,-1696.84276292,0.00027379,2]
[331674899,1720624239373,-71016.8137595,0.00027387,3]
[331674900,1720624239383,-500.0,0.00027397,2]
[331674901,1720624239393,-500.0,0.00027397,2]
[331674902,1720624239402,-500.0,0.00027397,2]
[331674903,1720624239412,-500.0,0.00027397,2]
[331674904,1720624239422,-500.0,0.00027397,2]
[331674905,1720624239432,-500.0,0.00027397,2]
[331674906,1720624239442,-500.0,0.00027397,2]
[331674907,1720624239452,-500.0,0.00027397,2]
[331674908,1720624239462,-500.0,0.00027397,2]
[331674909,1720624239471,-500.0,0.00027397,2]
[331674910,1720624239481,-500.0,0.00027397,2]
[331674911,1720624239491,-500.0,0.00027397,2]
[331674912,1720624239500,-224.23404125,0.00027397,2]
[331674913,1720624239510,-500.0,0.00027397,2]
[331674914,1720624239519,-500.0,0.00027397,2]
[331674915,1720624239529,-500.0,0.00027397,2]
[331674916,1720624239539,-500.0,0.00027397,2]
[331674917,1720624239549,-500.0,0.00027397,2]
[331674918,1720624239559,-500.0,0.00027397,2]
[331674919,1720624239569,-500.0,0.00027397,2]
[331674920,1720624239579,-500.0,0.00027397,2]
[331674921,1720624239589,-500.0,0.00027397,2]
[331674922,1720624239600,-500.0,0.00027397,2]
[331674923,1720624239610,-500.0,0.00027397,2]
[331674924,1720624239620,-500.0,0.00027397,2]
[331674925,1720624239631,-500.0,0.00027397,2]
[331674926,1720624239641,-500.0,0.00027397,2]
[331674927,1720624239653,-500.0,0.00027397,2]
[331674928,1720624239663,-500.0,0.00027397,2]
[331674929,1720624239672,-500.0,0.00027397,2]
[331674930,1720624239682,-500.0,0.00027397,2]
[331674931,1720624239692,-500.0,0.00027397,2]
[331674932,1720624239702,-500.0,0.00027397,2]
[331674933,1720624239712,-500.0,0.00027397,2]
[331674934,1720624239722,-500.0,0.00027397,2]
[331674935,1720624239732,-500.0,0.00027397,2]
[331674936,1720624239742,-500.0,0.00027397,2]
[331674937,1720624239752,-500.0,0.00027397,2]
[331674938,1720624239762,-500.0,0.00027397,2]
[331674939,1720624239772,-500.0,0.00027397,2]
[331674940,1720624239782,-500.0,0.00027397,2]
[331674941,1720624239792,-500.0,0.00027397,2]
[331674942,1720624239802,-500.0,0.00027397,2]
[331674943,1720624239813,-500.0,0.00027397,2]
[331674944,1720624239823,-500.0,0.00027397,2]
[331674945,1720624239833,-500.0,0.00027397,2]
[331674946,1720624239843,-500.0,0.00027397,2]
[331674947,1720624239853,-500.0,0.00027397,2]
[331674948,1720624239863,-500.0,0.00027397,2]
[331674949,1720624239873,-500.0,0.00027397,2]
[331674950,1720624239883,-500.0,0.00027397,2]
[331674951,1720624239892,-216.730068,0.00027397,120]
[331674952,1720624239902,-500.0,0.000275,3]
[331674953,1720624239911,-168.0,0.00027671,2]
[331674954,1720624239921,-1696.84276292,0.00027769,2]
[331674955,1720624239931,-71016.8137595,0.00027989,3]
[331674956,1720624239941,-229.31696231,0.00028,30]
[331674957,1720624239951,-500.0,0.00028,3]
[331674958,1720624239961,-1000.0,0.00028,28]
[331674959,1720624239971,-166.666666,0.00028034,2]
[331674960,1720624239982,-1696.84276292,0.00028158,2]
[331674961,1720624239992,-201.2,0.00028473,2]
[331674962,1720624240003,-500.0,0.000285,3]
[331674963,1720624240014,-1696.84276292,0.00028547,2]
[331674964,1720624240023,-400.0,0.00028597,2]
[331674965,1720624240033,-500.0,0.00028637,2]
[331674966,1720624240042,-440.05599607,0.00028637,2]
[331674967,1720624240052,-163.74496817,0.00028637,2]
[331674968,1720624240062,-500.0,0.00028637,2]
[331674970,1720624240071,-500.0,0.00028637,2]
[331674971,1720624240080,-500.0,0.00028637,2]
[331674972,1720624240090,-500.0,0.00028637,2]
[331674973,1720624240099,-285.55627452,0.00028637,2]
[331674974,1720624240109,-500.0,0.00028637,2]
[331674975,1720624240118,-500.0,0.00028637,2]
[331674976,1720624240128,-500.0,0.00028637,2]
[331674977,1720624240137,-392.94888761,0.00028637,2]
[331674978,1720624240146,-71016.8137595,0.00028638,3]
[331674979,1720624240156,-124199.6635153,0.00028648,2]
[331674980,1720624240165,-168.0,0.00028767,2]
[331674981,1720624240175,-500.0,0.00029,3]
[331674982,1720624240185,-201.2,0.00029382,3]
[331674983,1720624240194,-500.0,0.000295,3]
[331674984,1720624240205,-6986.6266304,0.00029793,2]
[331674985,1720624240214,-151.0,0.00029803,7]
[331674986,1720624240223,-151.0,0.00029803,7]
[331674987,1720624240233,-179.214838,0.00029803,7]
[331674988,1720624240244,-179.214838,0.00029803,7]
[331674989,1720624240255,-286.852176,0.00029803,7]
[331674990,1720624240265,-286.852176,0.00029803,7]
[331674991,1720624240275,-166.554626,0.00029803,7]
[331674992,1720624240284,-151.0,0.00029803,7]
[331674993,1720624240294,-166.554626,0.00029803,7]
[331674995,1720624240305,-9621.97492075,0.00029803,2]
[331674997,1720624240314,-11078.18304274,0.00029803,2]
[331674999,1720624240324,-151.0,0.00029813,7]
[331675001,1720624240334,-6266.38582075,0.00029813,2]
[331675003,1720624240344,-1987.94718132,0.00029823,2]
[331675005,1720624240354,-5505.20654968,0.00029823,2]
[331675007,1720624240364,-151.0,0.00029823,2]
[331675008,1720624240373,-151.0,0.00029823,2]
[331675010,1720624240383,-3081.53440893,0.00029861,2]
[331675012,1720624240392,-525.56960238,0.00029861,2]
[331675014,1720624240401,-151.0,0.00029879,7]
[331675016,1720624240411,-155.274336,0.00029879,7]
[331675018,1720624240419,-151.0,0.00029879,7]
[331675020,1720624240429,-155.274336,0.00029879,7]
[331675022,1720624240438,-151.0,0.00029879,7]
[331675024,1720624240447,-554.789064,0.00029879,7]
[331675026,1720624240457,-237.12083986,0.00029901,2]
[331675028,1720624240466,-1435.70778162,0.00029901,2]
[331675030,1720624240475,-854.16232743,0.00029901,2]
[331675032,1720624240484,-170.47875529,0.0003,4]
[331675034,1720624240493,-8550.42241934,0.0003,5]
[331675036,1720624240502,-3256.50210657,0.0003,2]
[331675038,1720624240512,-471.68236775,0.0003,4]
[331675040,1720624240521,-150.0,0.0003,2]
[331675042,1720624240531,-500.0,0.0003,3]
[331675044,1720624240541,-242.0,0.0003,2]
[331675046,1720624240550,-168.0,0.00030205,2]
[331675048,1720624240560,-201.2,0.0003029,3]
[331675049,1720624240569,-600.0,0.00030374,2]
[331675051,1720624240579,-1406.0,0.00030383,2]
[331675053,1720624240588,-500.0,0.00031,3]
[331675055,1720624240598,-1000.0,0.00031,28]
[331675057,1720624240608,-88888.0,0.00031151,5]
[331675059,1720624240618,-201.2,0.00031199,4]
[331675061,1720624240628,-197.30576581,0.00031251,2]
[331675064,1720624240639,-155.42805707,0.00031251,4]
[331675065,1720624240650,-412.59810264,0.00031515,4]
[331675067,1720624240659,-183.26650708,0.00031515,2]
[331675069,1720624240670,-496.31446102,0.00031515,2]
[331675072,1720624240679,-2180.5,0.00031515,2]
[331675074,1720624240690,-150.0,0.00031873,2]
[331675075,1720624240700,-150.0,0.00031873,2]
[331675078,1720624240710,-500.0,0.00032,3]
[331675080,1720624240719,-201.2,0.00032107,4]
[331675082,1720624240729,-154.65203293,0.00032229,4]
[331675083,1720624240739,-800.0,0.00032346,2]
[331675085,1720624240749,-160.0,0.00032812,3]
[331675087,1720624240758,-250.88503092,0.00032848,2]
[331675089,1720624240768,-150.0,0.00032877,2]
[331675091,1720624240778,-307.922978,0.00032964,2]
[331675093,1720624240788,-299.40583462,0.00033,3]
[331675096,1720624240797,-242.0,0.00033,2]
[331675098,1720624240807,-3007.0,0.00033,2]
[331675099,1720624240816,-201.2,0.00033015,5]
[331675101,1720624240825,-168.0,0.00033226,2]
[331675103,1720624240834,-185.137086,0.00033295,2]
[331675105,1720624240843,-1406.0,0.00033383,2]
[331675107,1720624240854,-160.1527,0.00033433,7]
[331675109,1720624240863,-519.533666,0.00033433,7]
[331675111,1720624240873,-519.533666,0.00033433,7]
[331675113,1720624240882,-151.0,0.00033433,7]
[331675115,1720624240892,-160.0,0.00033443,4]
[331675117,1720624240901,-151.0,0.00033511,7]
[331675119,1720624240911,-2134.69299,0.00033511,7]
[331675121,1720624240920,-2134.69299,0.00033511,7]
[331675123,1720624240929,-333.67288233,0.00033538,2]
[331675125,1720624240938,-456.029422,0.0003357,7]
[331675127,1720624240948,-456.029422,0.0003357,7]
[331675129,1720624240958,-151.0,0.0003357,7]
[331675131,1720624240967,-152.671266,0.0003357,7]
[331675133,1720624240976,-2862.829884,0.0003357,7]
[331675135,1720624240986,-2862.829884,0.0003357,7]
[331675137,1720624240996,-366.6405652,0.00033576,2]
[331675139,1720624241005,-1000.0,0.00033604,2]
[331675141,1720624241014,-151.0,0.00033604,7]
[331675142,1720624241024,-151.0,0.00033604,7]
[331675144,1720624241034,-179.214838,0.00033604,7]
[331675146,1720624241043,-179.214838,0.00033604,7]
[331675148,1720624241053,-286.852176,0.00033604,7]
[331675150,1720624241063,-286.852176,0.00033604,7]
[331675152,1720624241073,-166.554626,0.00033604,7]
[331675154,1720624241082,-151.0,0.00033604,7]
[331675156,1720624241090,-166.554626,0.00033604,7]
[331675158,1720624241101,-5292.88975486,0.00033627,2]
[331675160,1720624241110,-314.46226792,0.00033693,2]
[331675162,1720624241119,-373.0,0.000337,7]
[331675164,1720624241131,-500.0,0.000337,2]
[331675166,1720624241140,-150.0,0.000337,2]
[331675168,1720624241149,-1003.764437,0.000337,13]
[331675170,1720624241158,-1000.0,0.00033716,2]
[331675172,1720624241167,-160.358734,0.0003379,7]
[331675174,1720624241176,-151.0,0.0003379,7]
[331675176,1720624241185,-14676.20705871,0.000338,5]
[331675178,1720624241197,-381639.76828127,0.000338,2]
[331675180,1720624241206,-123439.70264042,0.000338,2]
[331675182,1720624241216,-1403.86304612,0.000338,3]
[331675184,1720624241225,-284.6000077,0.000338,3]
[331675186,1720624241236,-5611.49557264,0.000338,4]
[331675188,1720624241245,-178.26724409,0.000338,7]
[331675190,1720624241255,-19858.86303144,0.000338,2]
[331675192,1720624241264,-200.0,0.000338,2]
[331675194,1720624241273,-151.0,0.000338,7]
[331675196,1720624241282,-151.0,0.000338,7]
[331675197,1720624241291,-151.0,0.000338,7]
[331675199,1720624241301,-216.922431,0.000338,7]
[331675201,1720624241310,-216.922431,0.000338,7]
[331675203,1720624241319,-216.922431,0.000338,7]
[331675205,1720624241328,-216.922431,0.000338,7]
[331675207,1720624241338,-519.533666,0.000338,7]
[331675209,1720624241347,-519.533666,0.000338,7]
[331675211,1720624241357,-519.533666,0.000338,7]
[331675213,1720624241366,-519.533666,0.000338,7]
[331675215,1720624241375,-519.533666,0.000338,7]
[331675217,1720624241384,-519.533666,0.000338,7]
[331675219,1720624241395,-151.0,0.000338,7]
[331675221,1720624241404,-151.0,0.000338,7]
[331675223,1720624241413,-151.0,0.000338,7]
[331675225,1720624241422,-151.0,0.000338,7]
[331675227,1720624241432,-151.0,0.000338,120]
[331675229,1720624241441,-151.0,0.000338,7]
[331675231,1720624241450,-267.512321,0.000338,120]
[331675233,1720624241459,-2134.69299,0.000338,7]
[331675235,1720624241468,-2134.69299,0.000338,7]
[331675237,1720624241478,-2134.69299,0.000338,7]
[331675239,1720624241487,-2134.69299,0.000338,7]
[331675241,1720624241496,-151.0,0.000338,2]
[331675243,1720624241506,-151.0,0.000338,2]
[331675245,1720624241516,-151.0,0.000338,2]
[331675256,1720624241605,-151.0,0.000338,2]
[331675259,1720624241627,-151.0,0.000338,7]
[331675261,1720624241637,-151.0,0.000338,7]
[331675263,1720624241648,-151.0,0.000338,7]
[331675265,1720624241659,-151.0,0.000338,7]
[331675266,1720624241668,-179.214838,0.000338,7]
[331675268,1720624241677,-179.214838,0.000338,7]
[331675270,1720624241686,-500.030685,0.000338,14]
[331675272,1720624241695,-179.214838,0.000338,7]
[331675274,1720624241705,-179.214838,0.000338,7]
[331675276,1720624241714,-286.852176,0.000338,7]
[331675278,1720624241723,-286.852176,0.000338,7]
[331675280,1720624241733,-286.852176,0.000338,7]
[331675282,1720624241742,-286.852176,0.000338,7]
[331675283,1720624241751,-166.554626,0.000338,7]
[331675284,1720624241761,-166.554626,0.000338,7]
[331675285,1720624241770,-151.0,0.000338,7]
[331675286,1720624241780,-151.0,0.000338,7]
[331675287,1720624241790,-166.554626,0.000338,7]
[331675288,1720624241803,-166.554626,0.000338,7]
[331675289,1720624241812,-456.029422,0.000338,7]
[331675290,1720624241821,-456.029422,0.000338,7]
[331675291,1720624241831,-456.029422,0.000338,7]
[331675292,1720624241840,-456.029422,0.000338,7]
[331675293,1720624241850,-151.0,0.000338,7]
[331675294,1720624241860,-151.0,0.000338,7]
[331675295,1720624241869,-151.0,0.000338,7]
[331675296,1720624241879,-155.274336,0.000338,7]
[331675297,1720624241889,-155.274336,0.000338,7]
[331675298,1720624241898,-151.0,0.000338,7]
[331675299,1720624241907,-155.274336,0.000338,7]
[331675300,1720624241917,-155.274336,0.000338,7]
[331675301,1720624241926,-2862.829884,0.000338,7]
[331675302,1720624241936,-2862.829884,0.000338,7]
[331675303,1720624241945,-2862.829884,0.000338,7]
[331675304,1720624241954,-2862.829884,0.000338,7]
[331675305,1720624241963,-151.0,0.000338,7]
[331675306,1720624241973,-151.0,0.000338,7]
[331675307,1720624241983,-554.789064,0.000338,7]
[331675308,1720624241993,-554.789064,0.000338,7]
[331675309,1720624242002,-151.0,0.000338,7]
[331675310,1720624242012,-294.468277,0.000338,7]
[331675311,1720624242021,-153.0,0.0003389,2]
[331675312,1720624242030,-201.2,0.00033924,5]
[331675313,1720624242042,-447.41491971,0.00033948,2]
[331675314,1720624242051,-500.0,0.00034,3]
[331675315,1720624242061,-1757.82046343,0.00034,120]
[331675316,1720624242070,-400.0,0.00034,120]
[331675317,1720624242079,-1000.0,0.00034,3]
[331675318,1720624242089,-160.0,0.00034074,5]
[331675319,1720624242098,-1999.999999,0.000341,7]
[331675320,1720624242109,-2198.41748245,0.00034229,4]
[331675321,1720624242119,-316319.06037911,0.00034299,4]
[331675322,1720624242237,403.37885226,0.00016255,2]
[331675323,1720624242262,-991.52187896,0.00018899,2]
[331675324,1720624242272,-554.789064,0.00029879,7]
[331675325,1720624242281,-554.789064,0.000338,7]
[331675326,1720624242291,-554.789064,0.000338,7]
[331675327,1720624242301,-88359.92231089,0.00034299,4]
[331675328,1720624242310,-1559.86063891,0.000343,60]
[331675329,1720624242321,-1128.88839307,0.000343,2]
[331675367,1720624243542,-732.85287319,0.00019703,2]
[331675368,1720624243552,-1284.25860385,0.000343,2]
[331675396,1720624246732,-449.93080049,0.00018899,2]
[331675397,1720624307216,1490.60581636,0.00016255,2]
[331675398,1720624331289,164.49158165,0.00016255,2]
[331675399,1720624344181,496.31446102,0.00016255,2]
[331675400,1720624344427,3775.30946352,0.00016255,2]
[331675402,1720624351620,1136.28120194,0.00025,30]
[331675408,1720624360758,1622.915,0.00016255,2]